Workbook

Sheet SECTION A
A1: CAPRICORN DISTRICT MUNICIPALITY
A2: PHASHA WATER SUPPLY-CONTRACT B
A3: CONTRACT NO.:INF-W06/2026/2027
A4: PRELIMINARY AND GENERAL
A5: SECTION 1200 A
A7: ITEM NO | B7: LI | C7: PMT | D7: DESCRIPTION | F7: UNIT | G7: QTY | H7: RATE | I7: AMOUNT
A9: 1 | C9: SABS 1200A | D9: PRELIMINARY AND GENERAL
D10: Note: Sum of 8.3 and 8.4 on P&G's excluding provisional sums should not exceed 15% of the project value
C12: 8.3 | D12: FIXED-CHARGES AND VALUE RELATED ITEMS
A14: 1.1 | C14: 8.3.1 | D14: Contractural Requirements | F14: Sum | G14: 1
C16: 8.3.2 | D16: Establishment of Facilities on site
A18: 1.2 | B18: LI | C18: 8.3.2.1 | D18: Facilities for the Engineer
D20: a) Furnished Offices | F20: Sum | G20: 1
D21: c) Contract Nameboards | F21: No. | G21: 1
A22: 1.3 | C22: PSAB.3.2.2.d | D22: Survey Assistants and Equipments | F22: Sum | G22: 1
A23: 1.4 | C23: PSAB.3.2.3.e | D23: Accomodation for Engineer 's Representatives( including new sleeping bed with mattress, cooking stove and fridge) | F23: Sum | G23: 1
A24: 1.5 | C24: PSAB.3.2.4.f | D24: Carports | F24: No. | G24: 2
A26: 1.6 | B26: LI | C26: 8.3.2.2 | D26: Facilities for the Contractor
D28: a) Office and storage sheds | F28: Sum | G28: 1
D29: b) Workshops | F29: Sum | G29: 1
D30: d) Living Accommodation | F30: Sum | G30: 1
D31: e) Ablution and latrine facilities | F31: Sum | G31: 1
D32: f) Tools and Equipment | F32: Sum | G32: 1
D33: g) Water Supplies, Electric Power and Telephone | F33: Sum | G33: 1
D34: i) Access | F34: Sum | G34: 1
A35: 1.7 | C35: PSAB.3.2.3.h | D35: Testing Equipment | F35: Sum | G35: 1
A37: 1.8 | C37: 8.3.3 | D37: Other fixed-charge obligations
D38: 1 | F38: Sum | G38: 1
D39: 2 | F39: Sum | G39: 1
D40: 3 | F40: Sum | G40: 1
A42: TOTAL CARRIED FORWARD
A44: CAPRICORN DISTRICT MUNICIPALITY
A45: PHASHA WATER SUPPLY
A46: CONTRACT NO.:INF-W06/2026/2027
A47: PRELIMINARY AND GENERAL
A48: SECTION 1200 A
A50: ITEM NO | B50: LI | C50: PMT | D50: DESCRIPTION | F50: UNIT | G50: QTY | H50: RATE | I50: AMOUNT
A51: BROUGHT FORWARD
A53: 1.9 | C53: 8.3.4 | D53: Removal of Site Establishment | F53: Sum | G53: 1
A55: 1.10 | C55: PSAB.3.4.a | D55: Additional Sampling of Materials and Analysis | F55: Psum | G55: 1 | H55: 30,000.00 | I55: =G55*H55 -> R 30,000.00
A56: 1.11 | C56: PSAB.5.4.b | D56: Handling cost and profit in respect of 1.1.10 above | F56: % | G56: =I55 -> 30,000.00
A57: 1.12 | C57: PSAB.5.5.c | D57: Submission of Health and Safety File | F57: Psum | G57: 1 | H57: 30,000.00 | I57: =G57*H57 -> R 30,000.00
A58: 1.13 | C58: PSAB.5.5.d | D58: Handling cost and profit in respect of 1.3.12 above | F58: % | G58: =I57 -> 30,000.00
C60: 8.4 | D60: TIME-RELATED ITEMS
C62: PSA8.4.2 | D62: Operation and maintenance of facilities on site for the duration of construction period
A64: 1.15 | C64: 8.4.2.1 | D64: Facilities for the Engineer
B66: LI | C66: PSAB4.2.a | D66: a) Furnished offices | F66: Month | G66: 7
C67: PSAB4.2.b | D67: b) Telephone(R1000 per month airtime) | F67: Month | G67: 7
B68: LI | C68: PSAB4.2.c | D68: c) Contract Nameboards | F68: Month | G68: 7
B69: LI | C69: PSAB.4.2.d | D69: d) Survey assistants and maintenance of survey equipments | F69: Month | G69: 7
B70: LI | C70: PSAB4.2.e | D70: e) Carports | F70: Month | G70: 7
A71: 1.16 | C71: 8.4.2.2 | D71: Facilities for the Contractor
B73: LI | D73: a) Office and storage sheds | F73: Month | G73: 7
B74: LI | D74: b) Workshops | F74: Month | G74: 7
B75: LI | D75: d) Living Accommodation | F75: Month | G75: 7
B76: LI | D76: e) Ablution and latrine facilities | F76: Month | G76: 7
B77: LI | D77: f) Tools and Equipment | F77: Month | G77: 7
B78: LI | D78: g) Water Supplies, Electric Power and Communications | F78: Month | G78: 7
D79: i) Access | F79: Month | G79: 7
A80: TOTAL CARRIED FORWARD
A81: CAPRICORN DISTRICT MUNICIPALITY
A82: PHASHA WATER SUPPLY
A83: CONTRACT NO.:INF-W06/2026/2027
A84: PRELIMINARY AND GENERAL
A85: SECTION 1200 A
A87: ITEM NO | B87: LI | C87: PMT | D87: DESCRIPTION | F87: UNIT | G87: QTY | H87: RATE | I87: AMOUNT
A88: BROUGHT FORWARD
A89: 1.17 | C89: PSA8.4.2.h | D89: Testing Equipment | F89: Month | G89: 7
A91: 1.18 | C91: 8.4.3 | D91: Supervision for duration of construction | F91: Month | G91: 7
A93: 1.19 | C93: 8.4.4 | D93: Company and head office overhead costs for the duration of the construction | F93: Month | G93: 7
A95: 1.20 | C95: PSAB4.2.b | D95: Quality Control, Testing and Certification | F95: Month | G95: 7
C97: 8.5 | D97: SUMS STATED PROVISIONALLY BY THE ENGINEER:
A99: 1.21 | C99: PSA8.5.1.a | D99: Remunaration of a Community Liaison Officer at R4500.00 per month for the duration of construction | F99: Psum | G99: 1.00 | H99: R 63,000.00 | I99: =H99*G99 -> R 63,000.00
A101: 1.22 | C101: PSA8.5.2.b | D101: Training of local labour by accrediated training provider | F101: Psum | G101: 1.00 | H101: R 200,000.00 | I101: =H101*G101 -> R 200,000.00
A103: 1.23 | C103: PSA8.5.3.c | D103: Remuneration of local labour undergoing training | F103: Psum | G103: 1.00 | H103: R 20,000.00 | I103: =H103*G103 -> R 20,000.00
A105: 1.24 | C105: PSA8.5.4.d | D105: Allowance for PSC members on official meetings @ R150.00 per member present with no apology | F105: Psum | G105: 1.00 | H105: R 30,000.00 | I105: =H105*G105 -> R 30,000.00
A107: 1.25 | C107: PSA8.5.4.d | D107: Occupational Health and Monitoring for the duration of the project | F107: Psum | G107: 1.00 | H107: R 313,044.00 | I107: =H107*G107 -> R 313,044.00
A109: 1.26 | C109: PSA8.5.4.d | D109: Environmental Monitoring for the duration of the project | F109: Psum | G109: 1.00 | H109: R 313,044.00 | I109: =H109*G109 -> R 313,044.00
A111: 1.27 | C111: PSA8.3.7.g | D111: Provision of Cellular telephones | F111: Psum | G111: 1.00 | H111: R 40,000.00 | I111: =H111*G111 -> R 40,000.00
A113: TOTAL CARRIED FORWARD
A114: CAPRICORN DISTRICT MUNICIPALITY
A115: PHASHA WATER SUPPLY
A116: CONTRACT NO.:INF-W06/2026/2027
A117: PRELIMINARY AND GENERAL
A118: SECTION 1200 A
A120: ITEM NO | B120: LI | C120: PMT | D120: DESCRIPTION | F120: UNIT | G120: QTY | H120: RATE | I120: AMOUNT
A121: BROUGHT FORWARD
A122: 1.28 | C122: PSA8.3.9.h | D122: Protection of pedestrians during construction | F122: Psum | G122: 1.00 | H122: R 40,000.00 | I122: =H122*G122 -> R 40,000.00
A124: 1.29 | C124: PSA8.3.10.i | D124: Provision for materials, special services,quality assurance and third party | F124: Psum | G124: 1.00 | H124: R 50,000.00 | I124: =H124*G124 -> R 50,000.00
A126: 1.30 | C126: PSA8.3.10.j | D126: Handling cost and profit in respect of all Provisional Sums above | F126: % | G126: =SUM(I99+I101+I103+I105+I107+I109+I111+I122+I124) -> 1,069,088.00
C128: 8.6 | D128: PRIME COST ITEMS
A130: 1.31 | C130: PSA8.6.1.a | D130: Inspection, handling,transportation and installation of materials such as pipes and fittings etc. | F130: PCSum | G130: 1.00 | H130: R50,000.00 | I130: R 50,000.00
A131: 1.32 | C131: PSA8.6.1.b | D131: Handling cost and profit in respect of 1.4.1 above | F131: % | G131: =I130 -> 50,000.00
C132: 8.7 | D132: DAY WORKS
A134: 1.33 | C134: PSA8.7.1 | D134: a)Labour
D136: i)Site Agent | F136: hours | G136: 8
D137: ii)Qualified Artisan/s | F137: hours | G137: 8
D138: iii)Qualified Mechanic/s | F138: hours | G138: 8
D139: iv)Foreman | F139: hours | G139: 8
D140: v)Semi-skilled | F140: hours | G140: 8
D141: vi)Unskilled | F141: hours | G141: 8
A143: 1.34 | C143: PSA8.7.2 | D143: b)Planthire: work rates on site
D145: i)Tipper truck(5.5m3) | F145: hours | G145: 8
D146: ii)Tipper truck(10m3) | F146: hours | G146: 8
D147: iii)Flatbed truck (7ton) | F147: hours | G147: 8
D148: iv)LDV | F148: hours | G148: 8
D149: v)Tractor loader backhoe(TLB) | F149: hours | G149: 8
D150: vi) Pedestrian roller( Bomag 90) | F150: hours | G150: 8
D151: vii) Concrete mixer( 0.9m3)(wet) | F151: hours | G151: 8
D152: viii) Water Tanker(10000L) | F152: hours | G152: 8
D153: ix) Water Tanker(16000L) | F153: hours | G153: 8
D154: x) Compressor | F154: hours | G154: 8
D155: xi) Excavator | F155: hours | G155: 8
D156: xii) Compactor…….(specify size) | F156: hours | G156: 8
D157: xiii) Water pumps | F157: hours | G157: 8
D158: xiv) Dumper…………….(specify size) | F158: hours | G158: 8
A160: TOTAL CARRIED FORWARD
A161: CAPRICORN DISTRICT MUNICIPALITY
A162: PHASHA WATER SUPPLY
A163: CONTRACT NO.:INF-W06/2026/2027
A164: PRELIMINARY AND GENERAL
A165: SECTION 1200 A
A167: ITEM NO | B167: LI | C167: PMT | D167: DESCRIPTION | F167: UNIT | G167: QTY | H167: RATE | I167: AMOUNT
A168: BROUGHT FORWARD
A169: 1.35 | C169: PSA8.7.3 | D169: c) Planthire: Transport cost to and from site for low -bed truck | F169: km | G169: 300
C171: 8.8 | D171: TEMPORARY WORKS
A173: 1.36 | C173: 8.8.1 | D173: Main Access Road to works | F173: Sum | G173: 1
A174: 1.37 | C174: 8.8.2 | D174: Accomodation of Traffic for the duration of construction | F174: Sum | G174: 1
C176: 8.8.4 | D176: Existing Services
A178: 1.38 | B178: LI | D178: Temporary protection of existing services | F178: Psum | G178: 1 | H178: R 60,000.00 | I178: =H178*G178 -> R 60,000.00
A180: 1.39 | B180: LI | D180: Relocation of existing services | F180: Psum | G180: 1 | H180: R 80,000.00 | I180: =H180*G180 -> R 80,000.00
A182: 1.40 | B182: LI | D182: Provision of an instrument to detection the location of existing services | F182: Psum | G182: 1 | H182: R 60,000.00 | I182: =H182*G182 -> R 60,000.00
A184: 1.41 | D184: Provision of for rented hotel and other accomodation | F184: Psum | G184: 1 | H184: R 60,000.00 | I184: =H184*G184 -> R 60,000.00
A186: 1.42 | D186: Handling cost and profit in respect of existing services above | F186: % | G186: =SUM(I178+I180+I182+I184) -> 260,000.00
A194: TOTAL CARRIED FORWARD TO SUMMARY

Sheet SECTION C
A1: CAPRICORN DISTRICT MUNICIPALITY
A2: PHASHA WATER SUPPLY-CONTRACT B
A3: CONTRACT NO.:INF-W06/2026/2027
A4: SITE CLEARANCE
A5: SECTION 1200 C
A7: ITEM NO | B7: LI | C7: PMT | D7: DESCRIPTION | F7: UNIT | G7: QTY | H7: RATE | I7: AMOUNT
A9: 2 | C9: SABS 1200C | D9: SITE CLEARANCE
A11: 2.1 | C11: 8.2.1 | D11: Clear and grub: 3meter wide strip | F11: m | G11: 22950.00
C13: 8.2.2 | D13: Remove and grub large trees and tree stumps of girth:
A15: 2.2 | D15: a)Over 1,0 m and up to and including 2,0 m | F15: No | G15: 5.00
A16: 2.3 | D16: b)Over 2,0 m and up to and including 3,0 m | F16: No | G16: 2.00
A17: 2.4 | D17: c)Over 3,0 m and up to and including 4,0 m | F17: No | G17: 2.00
A19: 2.5 | C19: 8.2.5 | D19: Take down and reinstate existing fences | F19: km | G19: 0.80
A21: 2.6 | C21: 8.2.6 | D21: Clear hedge or fence or both where not schedule separately | F21: m | G21: 100.00
A23: 2.7 | C23: 8.2.9 | D23: Transport materials and debris to unspecified sites and dump | F23: m3.km | G23: 3500.00
A25: 2.8 | C25: 8.2.10 | D25: Remove topsoil to nominal depth of 150mm and stockpile | F25: m³ | G25: 220.00
C27: PSC2.11 | D27: Remove topsoil to spoil on a designated site identified by the community representatives | F27: m³ | G27: 220.00
A29: 2.9 | C29: PSC2.12 | D29: Demolish existing concrete | F29: m³ | G29: 2.00
A39: TOTAL CARRIED TO SUMMARY

Sheet SECTION DB
A1: CAPRICORN DISTRICT MUNICIPALITY
A2: PHASHA WATER SUPPLY-CONTRACT B
A3: CONTRACT NO.:INF-W06/2026/2027
A4: EARTHWORKS( PIPE TRENCHES)
A5: SECTION 1200 DB
A7: ITEM NO | B7: LI | C7: PMT | D7: DESCRIPTION | F7: UNIT | G7: QTY | H7: RATE | I7: AMOUNT
A9: 3 | C9: SABS1200DB | D9: EARTHWORKS (PIPE TRENCHES)
C11: 8.3.2 | D11: Bulk Excavation
A13: 3.1 | C13: 8.3.2.a | D13: Excavate in all materials and use for embankment or backfill,compose and dispose of surplus/unsuitable material within a freehaul distance of 2,0km as ordered for the following :
D15: i) Water pipes | F15: m³ | G15: 13870.00
A16: 3.2 | C16: 8.3.2.b | D16: Extra over item 8.3.2a above and inclusive of freehaul distance of 2,0km for: Note:Agreement should be made between the Engineer and the Contractor prior to the execution of this activities to avoid unnecessary disputes
D18: a)Intermediate excavation | F18: m³ | G18: 7980.00
D20: b)Hard rock excavation | F20: m³ | G20: 5750.00
D22: c)Boulder Excavation , Class A | F22: m³ | G22: 2850.00
D24: d)Boulder Excavation (By Blasting) | F24: m³ | G24: 3434.00
A26: 3.3 | B26: LI | C26: PSDB3.2.c | D26: Labour Intensive Method on Exacavation :
D28: i) Soft material | F28: m³ | G28: 550.00
D29: ii) Intermediate material | F29: m³ | G29: 650.00
A31: TOTAL CARRIED FORWARD
A32: CAPRICORN DISTRICT MUNICIPALITY
A33: PHASHA WATER SUPPLY-CONTRACT B
A34: CONTRACT NO.:INF-W06/2026/2027
A35: EARTHWORKS( PIPE TRENCHES)
A36: SECTION 1200 DB
A38: ITEM NO | B38: LI | C38: PMT | D38: DESCRIPTION | F38: UNIT | G38: QTY | H38: RATE | I38: AMOUNT
A39: BROUGHT FORWARD
A40: 3.4 | B40: LI | C40: PSDB3.2.d | D40: Labour Intensive Method on Backfilling:
D42: i) Backfill and Compaction of material of all type | F42: m³ | G42: 12500.00
D43: ii) Soilcrete backfill where directed by the Engineer | F43: m³ | G43: 450.00
D44: iii) Dispose of surplus excavted material(limited overhaul of 0,5 to 1km). | F44: m³ | G44: 160.00
D45: iv) Backfill road crossings using a commercial or designated borrowpit type G4 class of material compacted to 98% Mod AASHTO density | F45: m³ | G45: 300.00
D46: v) Backfill to structures using approved cohessionless material from stockpile | F46: m³ | G46: 300.00
C48: 8.3.3 | D48: Excavation Ancillaries
A49: 3.5 | C49: 8.3.3.1 | D49: Make up deficiency in backfill ,material
D51: b) Extra over for importation of materials from commercial sources or from a designated borrow pits, placed , mixed,watered, lay, compacted to 95% mod.AASHTO in layers not exceeding 150mm and tested by an accrediated independent laboratory. | F51: m³ | G51: 3200.00
D52: c)Dealing with overburden on designated borrow pits | F52: m³ | G52: 350.00
A53: 3.6 | C53: 8.3.3.2 | D53: Opening up and closing down of designated borrow pits | F53: Psum | G53: 1.00 | H53: 20,000.00 | I53: =H53*G53 -> R 20,000.00
A54: 3.7 | C54: PSDB3.2 | D54: Handling cost and profit in respect of 4.16 above | F54: % | G54: =I53 -> 20000.00
A56: TOTAL CARRIED FORWARD
A57: CAPRICORN DISTRICT MUNICIPALITY
A58: PHASHA WATER SUPPLY-CONTRACT B
A59: CONTRACT NO.:INF-W06/2026/2027
A60: EARTHWORKS( PIPE TRENCHES)
A61: SECTION 1200 DB
A63: ITEM NO | B63: LI | C63: PMT | D63: DESCRIPTION | F63: UNIT | G63: QTY | H63: RATE | I63: AMOUNT
A65: BROUGHT FORWARD
A67: 3.8 | C67: 8.3.3.4 | D67: Overhaul
D69: a) Limited overhaul( 0,5km to 1,0km) | F69: m³ | G69: 362.00
D70: b) Overhaul in excess of free-haul of 1,0km | F70: m³.km | G70: 5500.00
A72: 3.9 | C72: 8.3.4 | D72: Particular Items
D74: a) Shore trench opposite structure or service | F74: m | G74: 100.00
D75: b) Tempoary works( including provision of necessay equipments, operate,maintanance and removing them):i.e control of water inflow | F75: sum | G75: 1.00
A77: 3.10 | B77: LI | C77: PSDB3.5 | D77: Existing Services
D79: a. Excavate and expose of existing services | F79: m³ | G79: 120.00
A81: 3.11 | B81: LI | C81: 8.3.6.1 | D81: Re-instating of road surfaces complete with all courses
D82: i) Compaction in road reserves | F82: m2 | G82: 1200.00
A84: 3.12 | B84: LI | C84: PSDB3.6.2 | D84: Extra-over item3,3,1 by means of 4% stabilized backfill material and the density compaction test(90%) layer(150mm) as ordered by the Engineer:
D86: a) Lime stabilisation layer | F86: t | G86: Rate Only | I86: Rate Only
D87: b) Cement stabilisation layer | F87: t | G87: 0.40
A95: TOTAL CARRIED TO SUMMARY

Sheet SECTION LB
A1: CAPRICORN DISTRICT MUNICIPALITY
A2: PHASHA WATER SUPPLY-CONTRACT B
A3: CONTRACT NO.:INF-W06/2026/2027
A4: BEDDING FOR WATER PIPES
A5: SECTION 1200 LB
A7: ITEM NO | B7: LI | C7: PMT | D7: DESCRIPTION | F7: UNIT | G7: QTY | H7: RATE | I7: AMOUNT
A9: 4 | C9: SABS 1200LB | D9: BEDDING
A11: 4.1 | C11: 8.2.1 | D11: Provision of bedding from trench excavation:
D13: a)Selected granular material | F13: m³ | G13: 3654.00
D14: b)Selected fill material | F14: m³ | G14: 2436.00
C16: 8.2.2 | D16: Provision of bedding by importation:
A18: 4.2 | C18: 8.2.2.1 | D18: From other necessary excavations:
D20: a)Selected granular material | F20: m³ | G20: 800.00
D21: b)Selected fill material | F21: m³ | G21: 1100.00
A23: 4.3 | C23: 8.2.2.2 | D23: From borrow pits:
D25: a)Selected granular material | F25: m³ | G25: 220.00
D26: b)Selected fill material | F26: m³ | G26: 420.00
A28: 4.4 | C28: 8.2.2.3 | D28: From commercial source( Provincially)
D30: a)Selected granular material | F30: m³ | G30: 100.00
D31: b)Selected fill material | F31: m³ | G31: 100.00
A33: 4.5 | B33: LI | C33: 8.2.3 | D33: Concrete bedding craddle(20Mpa/19mm) | F33: m³ | G33: 20.00
A35: 4.6 | B35: LI | C35: 8.2.4 | D35: Encasing of pipes in concrete
D37: a) Class 25Mpa/19mm | F37: m³ | G37: 40.00
D38: b) Extra -over items 8.2.2 for bedding stabilized with 4% cement as ordered by the engineer | F38: m³ | G38: 75.00
A40: 4.7 | C40: 8.2.5 | D40: Overhaul of material for bedding cradle and selected fill blanket | F40: m³.km | G40: 3312.00
A42: 4.8 | B42: LI | C42: PSLB8.2.6a | D42: Compaction of trench bottom | F42: m2 | G42: =30450 -> 30450.00
A44: TOTAL CARRIED TO SUMMARY

Sheet SECTION L
A1: CAPRICORN DISTRICT MUNICIPALITY
A2: PHASHA WATER SUPPLY-CONTRACT B
A3: CONTRACT NO.:INF-W06/2026/2027
A4: MEDIUM PRESSURE PIPELINES AND ANCILLARIES
A5: SECTION 1200 L
A7: ITEM NO | B7: LI | C7: PMT | D7: DESCRIPTION | F7: UNIT | G7: QTY | H7: RATE | I7: AMOUNT
A8: 5 | C8: SABS 1200L | D8: MEDIUM PRESSURE PIPELINES( as specified in SABS 1200L, SABS 1200GA and the Project Specifications)
C10: 8.2.1 | D10: Supply, handle, lay, joint, bed(class B) the following uPVC pressure pipes ( conforming to SABS 966-1976 specifications) in 6m length each pipe fitted at one end with socket for mechanical jointing, in the following diameters.
A12: 5.1 | B12: LI | D12: i) Reticulation Network
D14: a) 90 mm diameter, uPVC, Class 12 | F14: m | G14: 5,500
D15: b) 75 mm diameter, uPVC, Class 12 | F15: m | G15: 23,750
D16: c) 32mm Class PN10 | F16: m | G16: 5,300
D17: d) 25mm Class PN10 | F17: m | G17: 2,000
D18: e) 80mm diameter galvanised steel pipe | F18: m | G18: 1,200
C20: 8.2.2 | D20: FIITINGS AND SPECIALS FOR FIXING ONTO uPVC PIPES
D22: Fittings to be suitable for coupling directly(mechanically) onto pipes. Each fitting socketted for mechanical jointing. Fittingsto be Class 16(unless otherwise specified) . Fittings to be PVC, Cast Iron or epoxy coated steel.
A24: 5.2 | B24: LI | D24: a) Bends
D25: i) 90 degree: uPVC Class 16 to fit uPVC pipes
D26: a)75mm diameter | F26: No | G26: 32
D27: b)90mm diameter | F27: No | G27: 1
D29: ii) 45 degree: uPVC Class 16 to fit uPVC pipes
D31: a)75mm diameter | F31: No | G31: 14
D32: b)90mm diameter | F32: No | G32: 1
D34: iii) 22.5 degree: uPVC Class 16 to fit uPVC pipes
D36: a)75mm diameter | F36: No | G36: 17
D37: b)90mm diameter | F37: No | G37: 1
A38: TOTAL CARRIED FORWARD
A39: CAPRICORN DISTRICT MUNICIPALITY
A40: PHASHA WATER SUPPLY-CONTRACT B
A41: CONTRACT NO.:INF-W06/2026/2027
A42: MEDIUM PRESSURE PIPES
A43: SECTION 1200 L
A44: ITEM NO | B44: LI | C44: PMT | D44: DESCRIPTION | F44: UNIT | G44: QTY | H44: RATE | I44: AMOUNT
A46: BROUGHT FORWARD
D48: iv)11.25 degree: uPVC Class 16 to fit uPVC pipes
D50: a)75mm diameter | F50: No | G50: 37
D51: b)90mm diameter | F51: No | G51: 1
A53: 5.3 | D53: b)Elbow: Male/Female
D54: i)90 degree angle : Steel
D56: 1)80mm Norminal Diameter | F56: No | G56: 2
D58: ii)45 degree angle : Steel
D60: 1)80mm Norminal Diameter | F60: No | G60: 2
A62: 5.4 | D62: c)Plugs:Steel
D64: i)80mm Norminal Diameter | F64: No | G64: 1
A66: 5.5 | D66: d)Repair Coupling: Steel
D68: i)80mm Norminal Diameter | F68: No | G68: 2
A70: 5.6 | B70: LI | D70: e) Cast Iron Equal Tees: for uPVC
D72: i)75mm dia | F72: No | G72: 60
D73: ii)90mm dia | F73: No | G73: 1
A75: 5.7 | B75: LI | D75: f) Cast Iron Reducing Tee: Socket-ended to fit uPVC
D77: i)75mm x90mm x 90mm dia | F77: No | G77: 6
D78: i)90mm x 75mm dia | F78: No | G78: 2
A80: 5.8 | B80: LI | D80: g) End Caps
D82: i)75mm dia | F82: No | G82: 7
D83: ii)90mm dia | F83: No | G83: 1
A85: TOTAL CARRIED FORWARD
A86: CAPRICORN DISTRICT MUNICIPALITY
A87: PHASHA WATER SUPPLY-CONTRACT B
A88: CONTRACT NO.:INF-W06/2026/2027
A89: MEDIUM PRESSURE PIPES
A90: SECTION 1200 L
A92: ITEM NO | B92: LI | C92: PMT | D92: DESCRIPTION | F92: UNIT | G92: QTY | H92: RATE | I92: AMOUNT
A93: BROUGHT FORWARD
A94: 5.9 | B94: LI | D94: h) Repair Couplings for uPVC Pipes
D96: i)75mm dia | F96: No | G96: 6
D97: ii)90mm diameter | F97: No | G97: 1
A99: 5.10 | B99: LI | D99: i) Flange Adaptor
D101: Cast iron bitumen dipped and lyng sockets to SABS 546 and SABS 966 with flange drilled to SABS 1123, table 16 complete including Supply, handle and joint to the system pipe uPVC Class 16 flange including all couplings where necessary.
D103: i)75mm dia | F103: No | G103: 6
D104: ii)90mm dia | F104: No | G104: 1
A106: 5.11 | B106: LI | C106: 8.2.3 | D106: Isolation Valves
C108: 8.2.3.1 | D108: Socketed Valves( Socketed RSV isolating valves, valves to be non- rising spindles with housing box together with cap top and rates shall include supply, lay and bed class 10 socket ended, clockwise gate valve to SABS 664 with housing box)
D109: i)75mm, diameter,class 16 | F109: No | G109: 30
D110: ii)90mm diameter,class 16 | F110: No | G110: 2
A111: 5.12 | B111: LI | C111: 8.2.3.2 | D111: Socketed Valves( Flanged RSV isolating valves, valves to be non- rising spindles with housing box together with cap top and rates shall include supply, lay and bed class 10 socket ended, clockwise gate valve to SABS 664 with housing box)
D112: i)80mm, class 16 | F112: No | G112: 2
A113: 5.13 | B113: LI | C113: 8.2.3.3 | D113: Non Return Valve
D115: i) 80mm Nominal Diameter | F115: No | G115: 2
A117: TOTAL CARRIED FORWARD
A118: CAPRICORN DISTRICT MUNICIPALITY
A119: PHASHA WATER SUPPLY-CONTRACT B
A120: CONTRACT NO.:INF-W06/2026/2027
A121: MEDIUM PRESSURE PIPES
A122: SECTION 1200 L
A124: ITEM NO | B124: LI | C124: PMT | D124: DESCRIPTION | F124: UNIT | G124: QTY | H124: RATE | I124: AMOUNT
A125: BROUGHT FORWARD
A126: 5.14 | B126: LI | C126: 8.2.3.3 | D126: Air Valves( Vent O Mat Series RBX with screwed BSP male inlet or similar, complete with flange, barrel nipple and 80mm gate valve)
D128: i)80mm dia Air Valve | F128: No | G128: 1
A130: 5.15 | B130: LI | C130: 8.2.3.4 | D130: Bulk water meter
D132: ( Kent or similar approved, flanged and drilled to SABS 1123,table 16)
D134: i)80mm dia in Bulk Line | F134: No | G134: 1
D135: ii)100mm dia in Bulk Line | F135: No | G135: 1
A137: 5.16 | B137: LI | C137: 8.2.9 | D137: Hydraulic Pipe Testing :
D139: i)75mm uPVC medium pressure pipes-Class12 | F139: m | G139: 23,750
D140: ii)90mm uPVC medium pressure pipes-Class12 | F140: m | G140: 5,500
D141: iii) 32mm Class PN10 | F141: m | G141: 5,300
D142: iv) 25mm Class PN10 | F142: m | G142: 2,000
D143: v) 80mm Galvanised Steel Pipe | F143: m | G143: 1,200
D144: vi)Pipe Special and fittings for testing | F144: Sum | G144: 1
A146: 5.17 | B146: LI | C146: PSLB2.10 | D146: Disinfecting Pipe Works:
D148: i)75mm uPVC medium pressure pipes-Class12 | F148: m | G148: =G139 -> 23,750
D149: ii)90mm uPVC medium pressure pipes-Class12 | F149: m | G149: =G140 -> 5,500
D150: iii) 32mm Class PN10 | F150: m | G150: =G141 -> 5,300
D151: iv) 25mm Class PN10 | F151: m | G151: =G142 -> 2,000
D152: v) 80mm Galvanised Steel Pipe | F152: m | G152: =G143 -> 1,200
A154: 5.18 | B154: LI | C154: 8.2.11 | D154: Thrust Blocks:
D156: Formworks | F156: m2 | G156: 180
D157: Concreteworks(Class 20/19Mpa) | F157: m3 | G157: 35
A159: 5.19 | B159: LI | C159: PSLB2.13 | D159: Pipeline markers
D160: Supply and install pipeline markers | F160: No | G160: 60
A162: 5.20 | B162: LI | C162: 8.2.15 | D162: Special Wrapping in Corrosive Soil
D164: a)Supply and wrap steel pipes by Denso Tape with thickness of 1.15mm , widths of a minimum of 100mm | F164: m | G164: 450
A166: TOTAL CARRIED TO SUMMARY

Sheet SECTION LF
A1: CAPRICORN DISTRICT MUNICIPALITY
A2: PHASHA WATER SUPPLY-CONTRACT B
A3: CONTRACT NO.:INF-W06/2026/2027
A4: ERF CONNECTIONS(Water)
A5: SECTION 1200 LF
A6: ITEM NO | B6: LI | C6: PMT | D6: DESCRIPTION | F6: UNIT | G6: QTY | H6: RATE | I6: AMOUNT
A7: 6 | C7: SABS 1200LF | D7: ERF WATER CONNECTIONS
C8: 8.2.1 | D8: Provide Erf Connections complete with excavations, saddles, pipelaying (HDPE, type iv(7210), class12 pipe), bedding, testing, connections, stop taps, backfilling, concrete works, etc
A9: 6.1 | C9: 8.2.1.a | D9: On the same side of the the street as the water pipe
B11: LI | D11: i) Double short drawoff connections, saddle,standpipe bedding and concrete block(20/Mpa)(0.5m x 0.4m x 0.1m)less than 5,0m long from saddle, for 32mm diameter | F11: No. | G11: 50
B12: LI | D12: ii) Single short drawoff connections,saddle,standpipe,bedding and concrete block(20/19Mpa)(0.5m x 0.4m x 0.1m), less than 5,0m long from saddle, for 25mm diameter | F12: No. | G12: 130
A13: 6.2 | C13: 8.2.1.b | D13: Across the street from the water pipe
B14: LI | D14: i) Double long drawoff connections,saddle,standpipe, bedding and concrete block(20/19Mpa)(0.5m x 0.4m x 0.1m))more than 15,0m long from saddle, for 32mm diameter | F14: No. | G14: 490
B15: LI | D15: iii) Single long drawoff connections,saddle,standpipe, bedding and concrete block(20/19Mpa)(0.5m x 0.4 x 0.1m),more than 15,0m long from saddle,for 25mm diameter | F15: No. | G15: 15
A17: 6.3 | C17: 8.2.4 | D17: Supply and Install water meter complete including Plasson box (KENT KSM) or similar approved
B18: LI | D18: i) 32mm diameter | F18: No. | G18: 540
B19: LI | D19: ii)25mm diameter | F19: No. | G19: 145
A21: 6.4 | C21: 8.2.5 | D21: Extra over item 8.2.1 for hauling bedding and selected fill in excess of the freehaul of 2,0km | F21: m3-km | G21: 85
B22: LI | D22: Note: This item 8,2,5 must be done only on instruction of the Engineer/Representative
A23: TOTAL CARRIED FORWARD TO SUMMARY

Sheet SUMMARY
A1: CAPRICORN DISTRICT MUNICIPALITY
A2: PHASHA WATER SUPPLY-CONTRACT B
A3: CONTRACT NO.:INF-W06/2026/2027
A5: SUMMARY SCHEDULE OF QUANTITIES
A6: ITEM | B6: DESCRIPTION | G6: AMOUNT
A8: SECTION A | B8: PRELIMINARY AND GENERAL
A10: SECTION C | B10: SITE CLEARANCE
A12: SECTION DB | B12: EARTHWORKS( Pipe Trenches)
A14: SECTION LB | B14: BEDDING
A16: SECTION L | B16: MEDIUM PRESSURE PIPES
A18: SECTION LF | B18: ERF CONNECTIONS
B21: SUB - TOTAL 1
B23: CONTINGENCIES( 10%)
A24: ( Note: The sum provided above is under the sole control of the Engineer and may be deducted in whole or in part. The tenderer shall add 10% of the total of schedule of quantities ( sub-total 1) for contingencies)
B26: SUB - TOTAL 2
B28: ESCALATION(2.5%)
B30: SUB - TOTAL 3
B32: VAT ( 15% )
A34: TOTAL TENDER AMOUNT TO BE CARRIED TO FORM OF OFFER
A35: Bidder 's Signature:……………………………………………………….
A36: Note: Verification with suppliers on Rate Only Items will be done by the Consultant during construction
